bitfinex/quotes_SOLUSD_20250307
["timestamp","ask_amount","ask_price","bid_price","bid_amount"]
[1741357521761,37.14209257,143.98,143.97,0.0001]
[1741357523255,136.7546,143.93,143.87,0.033]
[1741357523456,35.14478654,143.88,143.87,0.033]
[1741357523656,35.14478654,143.9,143.87,0.033]
[1741357523964,35.14478654,143.94,143.88,35.28694811]
[1741357524257,37.14225045,143.94,143.88,35.28694811]
[1741357524563,6.6405,143.96,143.9,35.28694811]
[1741357524564,37.1422236,143.96,143.9,35.28694811]
[1741357524770,35.83938654,143.96,143.9,35.28694811]
[1741357525063,35.83928654,143.98,143.93,0.14216157]
[1741357525257,35.14478654,143.96,143.93,0.14216157]
[1741357525637,35.14478654,143.96,143.91,0.14216157]
[1741357526158,35.14478654,143.94,143.89,35.28694811]
[1741357526465,0.6947,143.94,143.89,35.28694811]
[1741357526845,1.30284454,143.95,143.89,35.28694811]
[1741357527045,35.14478654,143.96,143.91,0.14216157]
[1741357527777,35.14478654,143.95,143.9,0.14216157]
[1741357528060,35.14478654,143.96,143.9,35.28694811]
[1741357528267,35.83938654,143.96,143.9,42.23574811]
[1741357528573,35.83938654,143.97,143.92,0.14216157]
[1741357529371,0.6946,143.97,143.92,0.14216157]
[1741357529671,35.83928654,143.98,143.93,0.14216157]
[1741357530380,35.83928654,143.98,143.93,7.08986157]
[1741357530557,83.6546,144.01,143.93,7.08986157]
[1741357530558,0.6944,144.01,143.95,35.28694811]
[1741357530773,0.6944,144.01,143.97,0.14216157]
[1741357530977,35.83908654,144.02,143.97,35.28694811]
[1741357531355,35.14478654,144.0,143.96,0.14216157]
[1741357531573,35.14478654,144.01,143.96,0.14216157]
[1741357531984,35.14478654,144.0,143.96,0.14216157]
[1741357532164,35.14478654,143.98,143.94,0.14216157]
[1741357532366,0.6945,143.97,143.94,0.14216157]
[1741357532581,35.83928654,143.98,143.94,0.14216157]
[1741357532881,35.14478654,143.99,143.94,0.14216157]
[1741357533688,35.14478654,143.98,143.94,0.14216157]
[1741357533894,35.14478654,143.98,143.93,0.14216157]
[1741357534591,35.83928654,143.97,143.92,0.14216157]
[1741357534758,35.14478654,143.96,143.92,0.14216157]
[1741357534964,36.44752039,143.95,143.88,0.033]
[1741357535287,35.14478654,143.93,143.88,0.033]
[1741357535470,35.14478654,143.89,143.88,0.033]
[1741357535674,6.3188,143.95,143.88,0.033]
[1741357535675,35.14478654,143.9,143.88,0.033]
[1741357535871,35.14478654,143.91,143.88,0.033]
[1741357536283,35.14478654,143.9,143.88,0.033]
[1741357536586,0.6949,143.89,143.88,0.033]
[1741357536998,35.83968654,143.89,143.88,0.033]
[1741357539004,35.83968654,143.9,143.88,0.033]
[1741357539569,35.14478654,143.89,143.88,0.033]
[1741357539968,35.83968654,143.9,143.88,0.033]
[1741357540176,36.44796847,143.89,143.88,0.033]
[1741357541076,36.44796847,143.89,143.87,0.033]
[1741357541274,35.14478654,143.88,143.87,0.033]
[1741357541770,35.14478654,143.89,143.87,0.033]
[1741357541991,37.14317184,143.9,143.87,0.033]
[1741357542386,35.14478654,143.89,143.87,0.033]
[1741357543906,35.83968654,143.89,143.87,0.033]
[1741357544480,0.6949,143.89,143.87,0.033]
[1741357544702,35.14478654,143.9,143.87,0.033]
[1741357544997,35.83968654,143.9,143.87,0.033]
[1741357545304,37.14279131,143.9,143.87,0.033]
[1741357545475,35.83968654,143.9,143.87,0.033]
[1741357545805,0.6949,143.9,143.87,0.033]
[1741357546181,35.83968654,143.9,143.87,0.033]
[1741357546506,35.83958654,143.92,143.87,0.033]
[1741357547808,35.14478654,143.91,143.87,0.033]
[1741357547978,36.44785611,143.9,143.87,0.033]
[1741357548803,35.14478654,143.89,143.87,0.033]
[1741357549907,0.695,143.88,143.87,0.033]
[1741357550288,37.14316085,143.88,143.87,0.033]
[1741357550806,35.83978654,143.88,143.87,0.033]
[1741357551999,0.695,143.88,143.87,0.033]
[1741357552709,35.14478654,143.89,143.87,0.033]
[1741357552879,35.14478654,143.9,143.87,0.033]
[1741357553087,0.6949,143.9,143.87,0.033]
[1741357553695,35.83968654,143.9,143.87,0.033]
[1741357554102,0.6949,143.9,143.87,0.17516157]
[1741357554408,0.03,143.9,143.89,35.28694811]
[1741357554609,0.03,143.9,143.89,0.14216157]
[1741357555788,24.04524522,143.9,143.89,0.14216157]
[1741357555993,22.742105,143.9,143.89,0.14216157]
[1741357556184,24.479405,143.9,143.87,0.033]
[1741357556380,22.017205,143.88,143.87,0.033]
[1741357556693,35.26290303,143.88,143.87,0.033]
[1741357557309,35.26290303,143.88,143.87,0.0001]
[1741357557613,1.30356961,143.88,143.87,0.0001]
[1741357557800,37.26147264,143.88,143.87,0.0001]
[1741357559423,38.99897264,143.88,143.84,0.0001]
[1741357559616,90.52580606,143.85,143.75,35.47614538]
[1741357559779,35.26290303,143.81,143.76,0.14216157]
[1741357560113,35.26290303,143.81,143.75,35.47614538]
[1741357560114,0.6954,143.8,143.75,35.47614538]
[1741357560303,35.26290303,143.81,143.76,0.14216157]
[1741357560304,35.95820303,143.81,143.76,0.14216157]
[1741357560479,7.7,143.85,143.78,54.05471346]
[1741357560687,35.26290303,143.85,143.8,18.79181043]
[1741357560892,35.26290303,143.85,143.8,0.14216157]
[1741357561214,35.26290303,143.86,143.81,0.14216157]
[1741357561415,1.30364447,143.89,143.81,54.05471346]
[1741357561711,35.95780303,143.89,143.83,35.4050646]
[1741357562218,35.26290303,143.89,143.83,35.4050646]
[1741357562518,0.03,143.9,143.85,35.4050646]
[1741357563220,0.03,143.9,143.87,0.14216157]
[1741357563389,0.03,143.9,143.87,35.4050646]
[1741357563589,0.7249,143.9,143.86,0.14216157]
[1741357564024,35.98780303,143.9,143.86,0.14216157]
[1741357564199,35.98780303,143.9,143.85,0.14216157]
[1741357564526,35.26290303,143.89,143.85,0.14216157]
[1741357564889,35.26290303,143.89,143.84,0.14216157]
[1741357565086,35.26290303,143.87,143.83,0.14216157]
[1741357566111,35.26290303,143.85,143.78,18.64964886]
[1741357566325,35.26290303,143.85,143.8,0.14216157]
[1741357566498,35.26290303,143.84,143.8,0.14216157]
[1741357566891,35.26290303,143.84,143.78,35.26290303]
[1741357567130,35.26290303,143.82,143.8,0.033]
[1741357567830,35.26290303,143.81,143.8,0.033]
[1741357568013,35.95820303,143.81,143.8,0.033]
[1741357571343,35.26290303,143.81,143.8,0.033]
[1741357572230,35.95820303,143.81,143.8,0.033]
[1741357572950,35.95820303,143.81,143.7,35.26290303]
[1741357572951,20.0,143.78,143.7,35.26290303]
[1741357573150,20.0,143.78,143.67,6.9602]
[1741357573151,35.26290303,143.74,143.67,6.9602]
[1741357573328,35.26290303,143.73,143.67,347.26290303]
[1741357573849,35.26290303,143.72,143.67,35.26290303]
[1741357574051,0.28432314,143.76,143.65,6.5746]
[1741357574344,3.73951965,143.75,143.65,41.83750303]
[1741357574551,2.00041965,143.75,143.68,0.14216157]
[1741357574730,35.26290303,143.73,143.65,13.5359]
[1741357574930,35.26290303,143.74,143.68,35.26290303]
[1741357575133,1.3046029,143.77,143.71,0.14216157]
[1741357575458,1.5823,143.8,143.7,35.26290303]
[1741357575459,36.56726707,143.76,143.7,35.26290303]
[1741357575635,36.56726707,143.76,143.71,0.14216157]
[1741357575841,35.26290303,143.76,143.71,0.14216157]
[1741357576049,35.26290303,143.74,143.69,35.26290303]
[1741357576363,35.26290303,143.7,143.64,35.26290303]
[1741357576530,35.26290303,143.68,143.61,13.4523]
[1741357576865,35.26290303,143.68,143.62,312.0]
[1741357577054,35.26290303,143.66,143.6,1.6216]
[1741357577250,35.26290303,143.66,143.61,35.26290303]
[1741357577452,1.30534796,143.7,143.59,35.26290303]
[1741357577453,35.26290303,143.65,143.59,35.26290303]
[1741357577763,35.26290303,143.65,143.59,0.14216157]
[1741357578059,35.26290303,143.65,143.59,42.22700303]
[1741357578242,1.30560947,143.68,143.62,35.26290303]
[1741357578434,35.26290303,143.69,143.64,0.14216157]
[1741357578758,35.26290303,143.68,143.64,0.14216157]
[1741357579160,35.26290303,143.68,143.62,35.26290303]
[1741357579482,1.30523509,143.72,143.67,0.14216157]
[1741357579632,35.26290303,143.71,143.67,0.14216157]
[1741357580128,36.56813812,143.72,143.66,42.3654646]
[1741357580334,118.66774157,143.73,143.68,0.14216157]
[1741357580962,117.36290303,143.73,143.68,0.14216157]
[1741357581140,8.98480735,143.74,143.69,0.14216157]
[1741357581342,35.26290303,143.75,143.69,35.4050646]
[1741357581947,35.26290303,143.75,143.71,0.14216157]
[1741357582259,13.84,143.78,143.71,0.14216157]
[1741357582260,8.98448145,143.78,143.71,35.4050646]
[1741357582561,36.56738448,143.78,143.73,0.14216157]
[1741357582739,35.26290303,143.77,143.73,0.14216157]
[1741357583142,35.26290303,143.8,143.74,35.4050646]
[1741357583351,45.50534454,143.81,143.76,0.14216157]
[1741357583870,35.26290303,143.82,143.77,35.4050646]
[1741357584167,35.26290303,143.82,143.77,0.14216157]
[1741357584368,35.26290303,143.81,143.75,35.26290303]
[1741357584555,35.26290303,143.81,143.74,312.0]
[1741357584556,36.56708927,143.8,143.76,0.14216157]
[1741357584751,35.26290303,143.79,143.76,0.14216157]
[1741357584958,35.26290303,143.77,143.72,0.14216157]
[1741357585143,35.26290303,143.78,143.72,35.4050646]
[1741357585643,1.30435169,143.77,143.72,35.4050646]
[1741357585843,36.56725472,143.77,143.71,35.26290303]
[1741357586042,35.26290303,143.78,143.73,0.14216157]
[1741357586344,1.99959944,143.83,143.76,35.4050646]
[1741357586547,36.56720247,143.83,143.78,0.14216157]
[1741357587005,1.30429944,143.83,143.78,35.4050646]
[1741357587468,35.26290303,143.81,143.77,0.14216157]
[1741357588051,36.56698293,143.8,143.74,347.26290303]
[1741357588571,1.9994799,143.8,143.75,0.14216157]
[1741357588776,35.26290303,143.79,143.75,0.14216157]
[1741357589069,35.26290303,143.79,143.74,0.14216157]
[1741357589471,35.26290303,143.8,143.74,35.4050646]
[1741357589772,35.26290303,143.8,143.76,0.14216157]
[1741357589970,36.5670468,143.8,143.76,0.14216157]
[1741357590162,35.26290303,143.81,143.76,0.14216157]
[1741357590360,35.26290303,143.81,143.76,35.4050646]
[1741357590849,35.95820303,143.82,143.76,35.4050646]
[1741357591049,1.30389406,143.81,143.76,35.4050646]
[1741357591246,37.26225765,143.82,143.76,35.4050646]
[1741357591645,1.30398369,143.83,143.78,35.4050646]
[1741357591876,37.26183987,143.85,143.8,0.14216157]
[1741357592062,0.03,143.84,143.8,0.14216157]
[1741357592759,0.03,143.84,143.8,42.3589646]
[1741357593074,0.03,143.84,143.82,0.14216157]
[1741357593250,0.03,143.84,143.82,35.4050646]
[1741357593441,0.03,143.84,143.83,35.4050646]
[1741357593843,0.03,143.84,143.83,60.5506366]
[1741357594347,0.03,143.84,143.83,60.26631346]
[1741357594562,0.03,143.84,143.83,60.5506366]
[1741357594756,0.03,143.9,143.86,18.79181043]
[1741357594942,0.03,143.9,143.89,35.4050646]
[1741357595161,0.03,143.9,143.89,0.14216157]
[1741357596562,0.03,143.9,143.89,35.4050646]
[1741357597676,0.03,143.9,143.89,0.14216157]
[1741357599050,0.03,143.9,143.86,35.26290303]
[1741357599347,0.03,143.9,143.85,7.68]
[1741357599549,35.29290303,143.9,143.86,0.14216157]
[1741357599776,35.29290303,143.9,143.83,35.26290303]
[1741357599777,35.26290303,143.88,143.83,35.26290303]
[1741357599972,35.26290303,143.88,143.82,61.59255189]
[1741357600178,36.56629823,143.87,143.81,35.26290303]
[1741357600477,35.26290303,143.85,143.81,0.14216157]
[1741357600783,35.26290303,143.86,143.8,35.26290303]
[1741357601145,36.56644875,143.85,143.79,35.26290303]
[1741357601351,35.26290303,143.83,143.77,35.26290303]
[1741357601650,35.26290303,143.82,143.78,0.14216157]
[1741357601846,36.56679672,143.81,143.71,192.00820303]
[1741357602078,35.26290303,143.79,143.74,35.26290303]
[1741357602251,35.26290303,143.79,143.73,35.26290303]
[1741357602451,36.5672163,143.78,143.71,156.7453]
[1741357602646,36.5672163,143.78,143.73,0.14216157]
[1741357602871,0.6956,143.76,143.71,522.65785189]
[1741357603051,35.95850303,143.76,143.71,185.76290303]
[1741357603253,35.95850303,143.76,143.71,35.26290303]
[1741357603476,35.95850303,143.76,143.67,6.0723]
[1741357603477,35.26290303,143.75,143.69,35.26290303]
[1741357603650,35.26290303,143.74,143.7,0.14216157]
[1741357603851,35.26290303,143.75,143.69,35.26290303]
[1741357604165,35.26290303,143.74,143.68,53.91255189]
[1741357604370,35.26290303,143.74,143.7,0.14216157]
[1741357604977,35.95860303,143.74,143.68,35.26290303]
[1741357605179,35.95860303,143.74,143.67,35.26290303]
[1741357605374,35.26290303,143.73,143.68,0.14216157]
[1741357605673,35.95860303,143.74,143.68,35.4050646]
[1741357606081,35.95860303,143.74,143.68,347.26290303]
[1741357606586,35.95860303,143.74,143.69,0.14216157]
[1741357606957,35.26290303,143.74,143.69,0.14216157]
[1741357607380,35.95860303,143.74,143.69,0.14216157]
[1741357608671,35.26290303,143.74,143.69,0.14216157]
[1741357609056,37.26316384,143.75,143.69,35.4050646]
[1741357609980,35.95850303,143.76,143.71,0.14216157]
[1741357610373,36.56743067,143.75,143.71,0.14216157]
[1741357610676,35.26290303,143.75,143.7,0.14216157]
[1741357611075,35.95850303,143.75,143.69,35.26290303]
[1741357611487,35.95850303,143.75,143.7,0.14216157]
[1741357611684,35.26290303,143.74,143.7,0.14216157]
[1741357611885,35.26290303,143.72,143.67,0.14216157]
[1741357612059,36.56784591,143.71,143.67,0.14216157]
[1741357612476,36.56784591,143.71,143.66,0.033]
[1741357612958,37.26364591,143.71,143.66,0.17516157]
[1741357613155,35.26290303,143.7,143.66,0.17516157]
[1741357613566,35.26290303,143.7,143.66,0.033]
[1741357614189,36.56801362,143.69,143.66,0.033]
[1741357614388,35.26290303,143.68,143.66,0.033]
[1741357614585,35.26290303,143.69,143.66,0.033]
[1741357614892,35.95870303,143.71,143.66,0.033]
[1741357615059,36.56787822,143.7,143.66,0.033]
[1741357615264,35.26290303,143.69,143.66,0.033]
[1741357615701,36.56808193,143.68,143.66,0.033]
[1741357615871,35.26290303,143.69,143.66,0.033]
[1741357616188,1.30521541,143.68,143.66,0.033]
[1741357616486,36.56811844,143.68,143.66,0.033]
[1741357617062,0.696,143.67,143.66,0.033]
[1741357617462,0.6958,143.71,143.66,0.033]
[1741357617692,0.6958,143.71,143.66,35.4380646]
[1741357617869,35.95870303,143.71,143.66,0.17516157]
[1741357618372,0.6958,143.71,143.67,0.14216157]
[1741357619267,35.26290303,143.7,143.66,0.17516157]
[1741357619470,35.26290303,143.69,143.66,0.17516157]
[1741357619665,35.26290303,143.69,143.66,0.033]
[1741357619870,1.30529752,143.7,143.66,0.033]
[1741357619871,36.56820055,143.7,143.66,0.033]
[1741357620690,0.6959,143.69,143.66,0.033]
[1741357621381,1.30519333,143.68,143.66,0.033]
[1741357621580,0.6959,143.69,143.66,0.033]
[1741357622375,37.26383599,143.69,143.66,0.033]
[1741357622570,35.26290303,143.68,143.66,0.033]
[1741357622896,2.00131139,143.67,143.66,0.033]
[1741357623104,0.696,143.67,143.66,0.033]
[1741357623603,35.95890303,143.67,143.66,0.033]
[1741357623786,0.696,143.68,143.66,0.033]
[1741357623991,44.9241291,143.69,143.66,0.033]
[1741357624179,0.6958,143.71,143.67,0.14216157]
[1741357624384,39.00295048,143.72,143.67,35.4050646]
[1741357624583,37.26355048,143.72,143.67,0.14216157]
[1741357624987,37.26355048,143.72,143.66,0.033]
[1741357625302,35.26290303,143.71,143.67,0.14216157]
[1741357625485,36.56799554,143.7,143.67,0.14216157]
[1741357625687,35.26290303,143.71,143.66,0.033]
[1741357625885,36.56795379,143.7,143.66,0.033]
[1741357626081,1.30505076,143.7,143.66,0.033]
[1741357626289,36.56795379,143.7,143.66,0.033]
[1741357626483,35.26290303,143.69,143.66,0.033]
[1741357626682,35.26290303,143.67,143.66,0.0001]
[1741357626906,35.95890303,143.67,143.66,0.0001]
[1741357628101,8.356,143.68,143.66,0.0001]
[1741357628282,36.56804102,143.67,143.66,0.0001]
[1741357628986,37.26404102,143.67,143.66,0.0001]
[1741357629806,45.05634102,143.67,143.66,0.0001]
[1741357631597,0.696,143.67,143.66,0.0001]
[1741357631783,0.6959,143.69,143.66,0.0001]
[1741357632286,35.95880303,143.69,143.66,0.0001]
[1741357633011,35.95880303,143.7,143.66,0.0001]
[1741357633311,0.6959,143.7,143.66,35.4051646]
[1741357633491,1.7393,143.73,143.69,35.26290303]
[1741357633492,1.30498607,143.73,143.69,35.26290303]
[1741357633681,35.95850303,143.76,143.7,35.4050646]
[1741357633877,35.95850303,143.76,143.7,0.14216157]
[1741357633878,35.26290303,143.74,143.7,0.14216157]
[1741357634081,35.26290303,143.74,143.69,0.14216157]
[1741357634281,35.26290303,143.74,143.69,35.4050646]
[1741357634804,36.5676691,143.73,143.69,0.14216157]
[1741357635110,0.6958,143.71,143.69,0.14216157]
[1741357635283,2.00078355,143.71,143.67,0.14216157]
[1741357635483,37.26368658,143.71,143.67,0.14216157]
[1741357635696,35.26290303,143.69,143.66,0.0001]
[1741357635898,1.30533728,143.68,143.66,0.0001]
[1741357636099,1.30518375,143.7,143.66,0.0001]
[1741357636306,35.26290303,143.68,143.66,0.0001]
[1741357636693,35.26290303,143.69,143.66,0.0001]
[1741357636901,1.30519958,143.68,143.66,0.0001]
[1741357637298,35.95890303,143.67,143.66,0.0001]
[1741357638103,37.26429618,143.67,143.66,0.0001]
[1741357638504,0.696,143.68,143.66,0.0001]
[1741357638804,1.30541004,143.69,143.66,0.0001]
[1741357638987,2.00131004,143.69,143.66,0.0001]
[1741357639407,35.26290303,143.68,143.66,0.0001]
[1741357639787,1.30527718,143.67,143.66,0.0001]
[1741357640215,36.56825254,143.68,143.66,0.0001]
[1741357640419,0.6959,143.69,143.66,0.0001]
[1741357640714,35.95880303,143.69,143.66,0.0001]
[1741357640913,36.56803599,143.68,143.66,0.0001]
[1741357641113,35.26290303,143.67,143.66,0.0001]
[1741357641318,35.95890303,143.67,143.66,0.0001]
[1741357642196,37.2642733,143.67,143.66,0.0001]
[1741357643516,35.95890303,143.67,143.66,0.0001]
[1741357643895,0.696,143.67,143.66,0.0001]
[1741357644128,0.696,143.68,143.66,0.0001]
[1741357644797,2.00132645,143.68,143.66,0.0001]
[1741357644990,0.696,143.68,143.66,0.0001]
[1741357645321,37.26420211,143.68,143.66,0.0001]
[1741357645517,55.26290303,143.67,143.66,0.0001]
[1741357645818,37.26420211,143.68,143.66,0.0001]
[1741357646207,35.26290303,143.67,143.66,0.0001]
[1741357646515,2.4351,143.73,143.66,35.4051646]
[1741357646730,36.56787484,143.72,143.66,35.4051646]
[1741357646895,35.26290303,143.7,143.66,0.14226157]
[1741357647094,1.3051644,143.69,143.66,0.14226157]
[1741357647291,0.6959,143.68,143.66,0.0001]
[1741357647524,35.95880303,143.68,143.66,0.0001]
[1741357648013,0.6959,143.68,143.66,0.0001]
[1741357649019,0.6959,143.69,143.66,0.14226157]
[1741357649404,35.95880303,143.69,143.66,0.0001]
[1741357649716,2.4357,143.69,143.66,0.0001]
[1741357649936,3.74086923,143.69,143.66,0.0001]
[1741357650494,39.00377226,143.69,143.66,0.0001]
[1741357650811,35.26290303,143.67,143.66,0.0001]
[1741357651391,35.95890303,143.67,143.66,0.0001]
[1741357652321,37.26445843,143.67,143.66,0.0001]
[1741357654116,135.1999,143.63,143.57,38.62215243]
[1741357654428,36.56880101,143.62,143.57,1.6982494]
[1741357654730,1.30589798,143.62,143.58,0.14216157]
[1741357655022,22.11896612,143.6,143.57,1.6982494]
[1741357655228,22.11896612,143.58,143.57,4.94e-05]
[1741357655395,20.0,143.55,143.48,6.5194]
[1741357655593,22.11896612,143.52,143.48,6.5194]
[1741357655810,1.30669629,143.54,143.48,6.5194]
[1741357656014,1.30669629,143.54,143.49,22.11896612]
[1741357656217,23.42566241,143.54,143.48,6.5194]
[1741357656433,1.30656805,143.55,143.48,6.5194]
[1741357656604,35.42865631,143.54,143.49,34.42865631]
[1741357657006,36.73522436,143.55,143.49,34.42865631]
[1741357657316,36.73522436,143.55,143.5,35.42865631]
[1741357657501,82.1,143.57,143.52,35.42865631]
[1741357657828,82.1,143.57,143.49,6.9687]
[1741357657829,35.42865631,143.6,143.54,35.57081788]
[1741357658327,1.30602511,143.59,143.54,35.57081788]
[1741357658625,36.73469494,143.6,143.56,0.14216157]
[1741357658798,1.30603863,143.6,143.56,0.14216157]
[1741357658998,43.08865631,143.61,143.56,35.57081788]
[1741357658999,7.66,143.61,143.56,35.57081788]
[1741357659197,7.66,143.61,143.58,0.14216157]
[1741357659198,8.3563,143.61,143.58,0.14216157]
[1741357659432,0.6962,143.63,143.58,35.57081788]
[1741357660229,0.6962,143.63,143.6,0.14216157]
[1741357660394,36.73429035,143.62,143.58,0.14216157]
[1741357660601,1.30563404,143.62,143.58,0.14216157]
[1741357660904,1.30563404,143.62,143.57,0.14216157]
[1741357660905,0.6963,143.61,143.57,0.14216157]
[1741357661116,0.6963,143.61,143.54,312.0]
[1741357661117,35.42865631,143.6,143.53,8.1145]
[1741357661325,35.42865631,143.6,143.56,0.14216157]
[1741357661516,37.43087416,143.61,143.56,0.14216157]
[1741357662126,35.42865631,143.59,143.54,0.14216157]
[1741357662427,35.42865631,143.57,143.51,35.42865631]
[1741357662641,36.73483803,143.58,143.52,35.42865631]
[1741357662831,36.73483803,143.58,143.51,35.42865631]
[1741357662832,35.42865631,143.57,143.51,35.42865631]
[1741357663128,35.42865631,143.55,143.49,6.1908]
[1741357663435,2.00279067,143.56,143.48,35.42865631]
[1741357663436,36.73513852,143.54,143.48,35.42865631]
[1741357663606,1.30648221,143.54,143.49,35.42865631]
[1741357663807,3.74443002,143.56,143.5,35.42865631]
[1741357664003,20.0,143.49,143.39,6.6514]
[1741357664237,8.94696631,143.48,143.38,35.42865631]
[1741357664557,8.94696631,143.48,143.34,8.1692]
[1741357664558,35.42865631,143.44,143.34,8.1692]
[1741357664833,8.94696631,143.48,143.34,8.1692]
[1741357665002,36.12585631,143.43,143.37,35.42865631]
[1741357665203,0.6972,143.43,143.36,35.42865631]
[1741357665401,0.6972,143.43,143.34,8.1692]
[1741357665402,35.42865631,143.41,143.35,35.42865631]
[1741357665835,0.6972,143.43,143.32,10.72712321]
[1741357665836,35.42865631,143.39,143.32,10.72712321]
[1741357666014,35.42865631,143.36,143.32,10.72712321]
[1741357666217,83.40786648,143.35,143.32,10.72712321]
[1741357666518,1.30786648,143.35,143.32,10.72712321]
[1741357666815,53.31327309,143.33,143.32,10.72712321]
[1741357667013,1.3085328,143.33,143.32,10.72712321]
[1741357667217,2.00594401,143.36,143.32,10.72712321]
[1741357667418,0.6974,143.38,143.32,10.72712321]
[1741357667741,54.62124624,143.37,143.32,10.72712321]
[1741357668049,0.6974,143.38,143.32,10.72712321]
[1741357668050,0.6974,143.38,143.33,0.14216157]
[1741357668239,54.01057309,143.4,143.33,53.45543466]
[1741357668544,53.31327309,143.37,143.33,0.14216157]
[1741357668750,54.62112999,143.39,143.33,0.14216157]
[1741357668925,1.3078569,143.39,143.33,0.14216157]
[1741357669119,1.30789246,143.41,143.33,53.45543466]
[1741357669341,53.31327309,143.39,143.33,53.45543466]
[1741357669522,53.31327309,143.39,143.33,0.14216157]
[1741357669923,53.31327309,143.38,143.33,0.14216157]
[1741357670120,2.00514485,143.41,143.31,0.033]
[1741357670348,53.31327309,143.36,143.31,0.033]
[1741357670649,53.31327309,143.36,143.31,0.17516157]
[1741357670846,1.30784485,143.41,143.36,0.14216157]
[1741357671051,2.00522539,143.42,143.36,0.14216157]
[1741357671253,55.31849848,143.42,143.36,53.45543466]
[1741357671432,53.31327309,143.41,143.36,0.14216157]
[1741357671634,1.3076128,143.45,143.36,53.45543466]
[1741357671840,53.31327309,143.42,143.36,53.45543466]
[1741357672354,53.31327309,143.41,143.36,0.14216157]
[1741357672733,53.31327309,143.42,143.36,53.45543466]
[1741357672930,2.00463511,143.45,143.38,0.14216157]
[1741357673129,53.31327309,143.45,143.39,53.45543466]
[1741357673331,53.31327309,143.44,143.39,0.14216157]
[1741357674023,53.31327309,143.45,143.39,53.45543466]
[1741357674759,53.31327309,143.47,143.4,0.14216157]
[1741357674934,54.01027309,143.47,143.42,0.14216157]
[1741357675130,53.31327309,143.45,143.42,0.14216157]
[1741357675328,53.31327309,143.45,143.4,0.14216157]
[1741357675634,53.31327309,143.44,143.4,0.14216157]
[1741357675838,1.83964705,143.5,143.44,0.14216157]
[1741357676034,55.15292014,143.5,143.44,0.14216157]
[1741357676247,1.83964705,143.5,143.44,0.14216157]
[1741357676458,53.31327309,143.45,143.42,0.14216157]
[1741357676637,53.31327309,143.44,143.42,0.14216157]
[1741357676827,53.31327309,143.43,143.38,0.14216157]
[1741357677032,54.01047309,143.43,143.38,0.14216157]
[1741357677240,53.31327309,143.43,143.38,0.14216157]
[1741357677449,3.04994,143.47,143.38,0.14216157]
[1741357677450,53.31327309,143.44,143.38,0.14216157]
[1741357677654,53.31327309,143.45,143.39,53.45543466]
[1741357677849,53.31327309,143.45,143.39,53.31327309]
[1741357678055,53.31327309,143.45,143.4,0.14216157]
[1741357678571,2.00444,143.47,143.39,0.14216157]
[1741357678572,53.31327309,143.44,143.39,0.14216157]
[1741357678869,53.31327309,143.46,143.41,0.14216157]
[1741357679037,54.62044256,143.45,143.41,0.14216157]
[1741357679359,53.31327309,143.44,143.41,0.14216157]
[1741357679539,54.62044256,143.45,143.4,0.14216157]
[1741357680269,54.62044256,143.45,143.32,168.363]
[1741357680270,53.31327309,143.41,143.32,157.8973]
[1741357680474,1.30716947,143.45,143.34,6.1164]
[1741357680475,53.31327309,143.4,143.34,6.1164]
[1741357680630,53.31327309,143.39,143.33,54.91677309]
[1741357680837,1.30775704,143.42,143.33,53.31327309]
[1741357681148,1.30775704,143.42,143.36,53.31327309]
[1741357681149,55.31823013,143.42,143.36,53.31327309]
[1741357681347,53.31327309,143.4,143.33,53.31327309]
[1741357681659,2.00513253,143.42,143.34,0.14216157]
[1741357681842,53.31327309,143.38,143.34,0.14216157]
[1741357682050,53.31327309,143.38,143.31,53.34627309]
[1741357682354,3.74823253,143.42,143.31,53.34627309]
[1741357682355,0.03,143.42,143.37,53.45543466]
[1741357682742,54.04047309,143.42,143.37,0.14216157]
[1741357683060,54.01057309,143.41,143.36,0.14216157]
[1741357683256,53.34327309,143.42,143.36,53.45543466]
[1741357683440,0.03,143.42,143.38,0.14216157]
[1741357683645,0.03,143.42,143.38,53.45543466]
[1741357683847,54.04047309,143.42,143.34,330.64964886]
[1741357684061,53.31327309,143.39,143.35,0.14216157]
[1741357684258,53.31327309,143.37,143.31,53.34627309]
[1741357684761,53.31327309,143.37,143.31,52.84627309]
[1741357684943,3.7782727,143.42,143.29,1.8643834]
[1741357684944,53.31327309,143.34,143.29,1.8643834]
[1741357685258,53.31327309,143.32,143.29,1.8643834]
[1741357685457,53.31327309,143.3,143.29,1.8643834]
[1741357687256,54.01107309,143.3,143.29,1.8643834]